Cogmind - Beta 15 @@@ ROGUE MODE // 2025.05.15 @ 19:52:05 Player: Wyvric Result: Destroyed by EL-C8I(R) with Subdweller Beam Cannon Performance ------------- Evolutions (0) 0 Regions Visited (2) 400 Robots Destroyed (37) 185 Value Destroyed (956) 956 Prototype IDs (0) 0 Alien Tech Used (0) 0 Bonus (0) 0 TOTAL SCORE: 1541 Bonus ------- None Cogmind --------- Core Integrity 0/250 Matter 25/300 Energy 200/200 System Corruption 0% Temperature Cool (9) Movement Treading (260) Ox1 Location -10/Subcaves Parts ------- > --- POWER (1) -------- Subdweller Power Source > --- PROPULSION (2) --- Spiked Treads > --- UTILITY (2) ------ Large Storage Unit Core Shielding > --- WEAPON (2) ------- Subdweller Laser Subdweller Machine Gun > --- INVENTORY (15) --- Light Nuclear Core Light Treads Wheel Compact Wheel Compact Wheel Subdweller Optics Seismic Detector Scrap Shield Particle Gun Light Assault Rifle Subdweller Machine Gun Subdweller Shrapnel Launcher Multitool Hammer Peak State ------------ > --- POWER ------------ Subdweller Power Source > --- PROPULSION ------- Spiked Treads Wheel > --- UTILITY ---------- Large Storage Unit Core Shielding > --- WEAPON ----------- Subdweller Machine Gun Subdweller Machine Gun > --- INVENTORY -------- Light Nuclear Core Aluminum Leg Aluminum Leg Wheel Compact Wheel Compact Wheel Subdweller Optics Seismic Detector Particle Gun Subdweller Laser Light Assault Rifle Subdweller Shrapnel Launcher Multitool Hammer [Rating: 13] Favorites ----------- Power Light Ion Engine Engine Light Ion Engine Propulsion Light Treads Treads Light Treads Wheel Wheel Utility Seismic Detector Device Seismic Detector Storage Large Storage Unit Protection Core Shielding Weapon Light Assault Rifle Energy Gun Particle Gun Ballistic Gun Light Assault Rifle Launcher Subdweller Shrapnel Launcher Impact Weapon Hammer Build | -11 -10 -10 ------- Run | Yrd Mat Sub Slots Evolved . | . . . Power . | . . . Propulsion . | . . . Utility . | . . . Weapon . | . . . Parts Attached 26 | 7 5 14 Power 4 | 1 1 2 Engine 4 | 1 1 2 Core . | . . . Reactor . | . . . Propulsion 8 | 2 . 6 Treads 4 | 2 . 2 Leg . | . . . Wheel 4 | . . 4 Hover . | . . . Flight . | . . . Utility 5 | 2 2 1 Device 1 | 1 . . Storage 3 | 1 2 . Processor . | . . . Hackware . | . . . Protection 1 | . . 1 Artifact . | . . . Weapon 9 | 2 2 5 Energy Gun 2 | . 1 1 Energy Cannon . | . . . Ballistic Gun 5 | 2 1 2 Ballistic Cannon . | . . . Launcher 1 | . . 1 Special Weapon . | . . . Impact Weapon 1 | . . 1 Slashing Weapon . | . . . Piercing Weapon . | . . . Special Melee Weapon . | . . . Unidentified Prototypes . | . . . Parts Lost 4 | . 2 2 Power 1 | . 1 . Propulsion 2 | . . 2 Utility . | . . . Weapon 1 | . 1 . Highest Loss Streak 1 | . 1 1 To Critical Strikes . | . . . Average Backups 11 | 4 8 14 Power 1 | . . 1 Propulsion 4 | 3 4 5 Utility 1 | . . 2 Weapon 3 | . 2 4 Tool/Special . | . . . Unused Backups 13 | . . 13 Power 2 | . . 2 Propulsion 5 | . . 5 Utility 2 | . . 2 Weapon 3 | . . 3 Tool/Special 1 | . . 1 Average Slot Usage (%) 99 | . 99 99 Engine 13 | . 13 14 Treads 14 | . 27 2 Wheel 13 | . . 25 Device 11 | . 14 10 Storage 14 | . 14 14 Protection 2 | . . 3 Energy Gun 2 | . 2 3 Ballistic Gun 20 | . 25 14 Launcher 4 | . . 8 Peak Build Rating 13 | 7 9 13 Average Rating 9 | 5 7 11 On Entrance 5 | . 7 9 Naked Turns . | . . . Heaviest Build 38 | 12 28 38 Greatest Support 40 | 40 40 40 Greatest Overweight (x) 3 | 2 . 3 Average Overweight (x) . | . . . Largest Inventory Capacity 15 | 8 15 15 Average Capacity 12 | 7 10 15 Most Carried 15 | 7 12 15 Average Carried 11 | 5 8 14 Final Capacity 15 | 8 15 15 Final Carried 15 | 6 12 15 Class Distribution -------------------- 82% | Mutant 17% | Scavenger-Mutant Dominant Class ---------------- Mutant | -10/Materials Mutant | -10/Subcaves Resources | -11 -10 -10 ----------- Run | Yrd Mat Sub Matter Collected 1011 | 280 266 465 Remotely . | . . . Salvage Created 1061 | 62 681 318 Parts 89 | 7 54 28 Haulers Intercepted 1 | . 1 . Recyclers Shooed . | . . . Parts Field Recycled . | . . . Retrieved Matter . | . . . Parts Self-Destructed 14 | . . 14 Prevented . | . . . Kills | -11 -10 -10 ------- Run | Yrd Mat Sub Combat Hostiles Destroyed 31 | . 21 10 Guns 23 | . 21 2 AOE 8 | . . 8 Classes Destroyed 9 | 1 5 3 Worker 1 | . 1 . Tunneler 3 | 3 . . Hauler 1 | . 1 . Watcher 1 | . 1 . Swarmer 9 | . 9 . Grunt 12 | . 12 . Sentry 1 | . . 1 Artisan 1 | . . 1 Subdweller 9 | . . 9 Best Kill Streak 6 | 1 6 2 Combat Bots Only 6 | . 6 2 Max Kills in Single Turn 1 | 1 1 1 Gunslinging . | . . . Exploded 1 | . . 1 Melee . | . . . Uniques/NPCs Destroyed . | . . . Combat | -11 -10 -10 -------- Run | Yrd Mat Sub Hostile Shots Fired 125 | . 85 40 Missed 38 | . 25 13 Hits 87 | . 60 27 Projectile 87 | . 60 27 AOE 1 | . . 1 Critical Strikes 1 | . . 1 Damage Taken 1302 | . 622 680 Core 269 | . 107 162 Absorbed by Shields . | . . . Redirected to Shielding 29 | . . 29 Regen/Repaired (Parts) 101 | . 101 . Core Remaining (%) 100 | 100 . . Volleys Fired 98 | 7 61 30 Largest 2 | 2 2 2 Hottest 90 | 40 40 90 Shots Fired 178 | 14 121 43 Gun 161 | 14 121 26 Cannon . | . . . Launcher 17 | . . 17 Special . | . . . Kinetic 166 | 14 121 31 Thermal 12 | . . 12 Explosive . | . . . Electromagnetic . | . . . Robot Hit Streak 25 | 3 10 25 Robot Miss Streak 4 | 2 4 1 Penetration Max . | . . . Secondary Targets 5 | . 5 . Max Gunslinging Chain 1 | . 1 . Shots Hit Robots 119 | 7 74 38 Core Hits 65 | 3 42 20 Critical Kills 1 | 1 . . Critical Parts Destroyed . | . . . Critical Strikes 1 | 1 . . Destroy 1 | 1 . . Melee Attacks 15 | . . 15 Impact 15 | . . 15 Slashing . | . . . Piercing . | . . . Sneak Attacks . | . . . Combat Hostiles . | . . . Follow-up Attacks . | . . . Damage Inflicted 2274 | 75 762 1437 Guns 1141 | 74 754 313 Cannons . | . . . Explosions 1124 | . . 1124 Melee . | . . . Ramming 9 | 1 8 . Kinetic 2115 | 74 754 1287 Thermal 150 | . . 150 Explosive . | . . . Electromagnetic . | . . . Impact . | . . . Slashing . | . . . Piercing . | . . . Highest Corruption . | . . . Average Corruption . | . . . Corruption Purged . | . . . Corruption Blocked . | . . . Overload Shots . | . . . Overflow Damage . | . . . Projectiles . | . . . Explosions . | . . . Melee . | . . . Knockbacks . | . . . Impact . | . . . Kinetic . | . . . Secondary . | . . . Self-Inflicted Damage . | . . . Shots . | . . . Rammed 5 | 1 4 . Targets Rammed 6 | 1 5 . Kicked . | . . . Crushed 1 | . 1 . Highest Temperature 18 | . 18 13 Average Temperature 7 | . 7 5 Received Heat Transfer 396 | . 222 174 Siege Activations . | . . . Martial Activations . | . . . Shielding Activations . | . . . Robots Disrupted . | . . . Combat Hostiles . | . . . Robots Corrupted . | . . . Combat Hostiles . | . . . Parts Fried . | . . . Impact Corruptions . | . . . Robots Melted . | . . . Combat Hostiles . | . . . Parts Melted . | . . . Heat Transferred 297 | . . 297 Parts Sabotaged . | . . . Parts Stolen . | . . . Parts Stripped . | . . . Power Chain Reactions . | . . . Alert | -11 -10 -10 ------- Run | Yrd Mat Sub Maximum Alert Level 1 | . 1 . Low Security (%) 82 | 100 79 . Level 1 17 | . 20 . Level 2 . | . . . Level 3 . | . . . Level 4 . | . . . Level 5 . | . . . High Security . | . . . Max Security . | . . . Peak Influence 269 | 5 269 . Initial . | . . . Average 106 | . 122 . Influence Increases 696 | 15 661 20 Destroy 0b10 Robot/C 440 | . 420 20 Destroy 0b10 Robot/NC 30 | 15 15 . Destroy Leader 94 | . 94 . Successful Hack 57 | . 57 . Select Force Hacks 60 | . 60 . Lose Combat Pursuer 15 | . 15 . Influence Decreases 696 | 15 448 233 Entered New Map 103 | . . 103 Time Decay 563 | 15 428 120 Lost Part 30 | . 20 10 Squads Dispatched 5 | . 5 . Investigation 3 | . 3 . Extermination . | . . . Reinforcement 2 | . 2 . Assault . | . . . Garrison . | . . . Intercept . | . . . Searches Triggered . | . . . Construction Impeded . | . . . Haulers Reinforced . | . . . Active Scanning Responses . | . . . Cargo Convoy Interrupts . | . . . Stealth | -11 -10 -10 --------- Run | Yrd Mat Sub Distress Signals 3 | . 3 . Communications Jammed . | . . . Distress Signals . | . . . Times Spotted 41 | . 28 13 Peak Tracking Total 8 | . 8 2 Tactical Retreats 2 | . 1 1 Traps | -11 -10 -10 ------- Run | Yrd Mat Sub Traps Triggered 1 | . 1 . Indirectly . | . . . Trap Hack Attempts . | . . . Triggered . | . . . Disarmed . | . . . Reprogrammed . | . . . Reused . | . . . Traps Extracted . | . . . Installed . | . . . Triggered . | . . . Machines | -11 -10 -10 ---------- Run | Yrd Mat Sub Machines Disabled . | . . . Max in Single Turn . | . . . Machines Repaired . | . . . Machines Dismantled . | . . . Machines Sabotaged . | . . . Overloaded Fab Kills . | . . . Hacking | -11 -10 -10 --------- Run | Yrd Mat Sub Machines Accessed 10 | . 9 1 Terminals 6 | . 6 . Fabricators . | . . . Repair Stations 1 | . 1 . Recycling Units 2 | . 2 . Scanalyzers . | . . . Garrison Access . | . . . Total Hacks 32 | . 29 3 Successful 23 | . 20 3 Failed 9 | . 9 . Catastrophic 1 | . 1 . Database Lockouts . | . . . Manual 22 | . 22 . Terminals 24 | . 24 . Fabricators . | . . . Repair Stations 3 | . 3 . Recycling Units 2 | . 2 . Scanalyzers . | . . . Garrison Access . | . . . Terminal Hacks 11 | . 8 3 Record 4 | . 1 3 Part Schematic 1 | . 1 . Robot Schematic 1 | . 1 . Robot Analysis 3 | . 3 . Locate Traps 2 | . 2 . Fabricator Hacks . | . . . Repair Station Hacks 2 | . 2 . Scan Component 1 | . 1 . Repair 1 | . 1 . Recycling Unit Hacks . | . . . Scanalyzer . | . . . Garrison Access Hacks . | . . . Unauthorized Hacks 10 | . 10 . Terminals 8 | . 8 . Botnet 3 | . 3 . Skim 5 | . 5 . Fabricators . | . . . Repair Stations . | . . . Recycling Units 2 | . 2 . Tunnel 2 | . 2 . Scanalyzers . | . . . Garrison Access . | . . . Data Cores Recovered . | . . . Used . | . . . Hacking Detections 6 | . 6 . Full Trace Events . | . . . Feedback Events . | . . . Feedback Blocked . | . . . Robot Schematics Acquired 1 | . 1 . Robots Built . | . . . Authchips . | . . . Time . | . . . Total Robot Build Rating . | . . . Part Schematics Acquired 1 | . 1 . Parts Built . | . . . Authchips . | . . . Time . | . . . Total Part Build Rating . | . . . Parts Repaired 1 | . 1 . Time 26 | . 26 . Parts Recycled . | . . . Recycled Matter . | . . . Retrieved Matter . | . . . Retrieved Components . | . . . Parts Scanalyzed . | . . . Part Schematics Acquired . | . . . Parts Damaged . | . . . Bothacking | -11 -10 -10 ------------ Run | Yrd Mat Sub Used RIF Installer . | . . . Robots Hacked . | . . . Non-combat . | . . . Combat . | . . . Robot Hacks Applied . | . . . Relay Couplers Released . | . . . Fabnet Peak Effective % . | . . . Robots Rewired . | . . . Allies Hacked . | . . . Hacks Repelled . | . . . Allies | -11 -10 -10 -------- Run | Yrd Mat Sub Total Allies . | . . . Largest Group . | . . . Highest-Rated Group . | . . . Highest-Rated Ally . | . . . Total Orders . | . . . Ally Attacks . | . . . Total Damage . | . . . Kills . | . . . Allies Corrupted . | . . . Allies Melted . | . . . Intel | -11 -10 -10 ------- Run | Yrd Mat Sub Active Infowar (turns) 2515 | 17 1412 1086 Seismic 2515 | 17 1412 1086 Robot Analysis Total 3 | . 3 . Derelict Logs Recovered . | . . . Drone Launches . | . . . Drone Recoveries . | . . . Exploration | -11 -10 -10 ------------- Run | Yrd Mat Sub Turns Passed 3150 | 205 1412 1533 Spaces Moved 2173 | 108 728 1337 Core 5 | 5 . . Treads 865 | 103 728 34 Legs . | . . . Wheels 1303 | . . 1303 Hover . | . . . Flight . | . . . Fastest Speed 50 | 50 160 95 Average Speed 121 | 155 160 96 Slowest Speed 260 | 160 160 260 Overloaded Moves . | . . . Propulsion Burnouts . | . . . Robots Hopped . | . . . Potential Cave-ins . | . . . Cave-ins Triggered . | . . . Exploration Rate (%) 54 | 7 100 55 Regions Visited 2 Branch Regions 1 Pre-discovered Areas 3 | . 3 . Known Exits Taken . | . . . Unknown Exits Taken 2 | 1 1 . Scrap Searched 2 | . . 2 Spaces Dug 3 | . . 3 Terrain Destroyed 162 | . . 162 Melee 3 | . . 3 Projectile . | . . . AOE 159 | . . 159 Terrain Rammed . | . . . Walls Destroyed . | . . . Machines Disabled . | . . . Actions | -11 -10 -10 --------- Run | Yrd Mat Sub Total 2490 | 129 866 1495 Wait 106 | . 58 48 Move 2171 | 107 727 1337 Hop . | . . . Pick Up 27 | 7 7 13 Fast Attach 10 | 6 2 2 Attach 4 | 1 2 1 Detach . | . . . Swap 38 | . 2 36 Drop 15 | . 2 13 Fire 98 | 7 61 30 Melee 15 | . . 15 Ram . | . . . Kick . | . . . Crush 6 | 1 5 . Escape Stasis . | . . . Rewire . | . . . Trap . | . . . Miscellaneous . | . . . Route ------- -11/Scrapyard -10/Materials (discovered 5 exits: *Mat x3 / [*Min] / *Sub) -10/Subcaves (discovered 1 exit: [*Mat]) History --------- Turn | Location | Event 17 | -11/Scrapyard | Discovered new exit (range 16) 206 | -11/Scrapyard | Entered Materials 305 | -10/Materials | Build established: Mutant 322 | -10/Materials | Discovered new exit (range 16) 406 | -10/Materials | Discovered new exit (range 9) 648 | -10/Materials | Discovered new exit (range 7) 783 | -10/Materials | Discovered new exit (range 15) 848 | -10/Materials | Repaired Lgt. Treads 1135 | -10/Materials | Identified exit to Materials 1179 | -10/Materials | Learned location of 3 exits from Materials 1211 | -10/Materials | Learned 4 Subcaves zone layouts 1248 | -10/Materials | Learned 4 Recycling zone layouts 1279 | -10/Materials | Learned 2 Storage zone layouts 1618 | -10/Materials | Entered Subcaves 1619 | -10/Subcaves | Approached by a straggling Scientist 1667 | -10/Subcaves | Core integrity fell below 50% 1794 | -10/Subcaves | Discovered new exit (range 10) 1876 | -10/Subcaves | A swath of the cavern ceiling suddenly collapsed 2182 | -10/Subcaves | Visited Clippyterm 2185 | -10/Subcaves | Learned Factory trap positions 2413 | -10/Subcaves | Core integrity fell below 20% 2659 | -10/Subcaves | Shifting Twisted Machinery released Scrap Shield 2676 | -10/Subcaves | Shifting Twisted Machinery released Sub. Power Source 2938 | -10/Subcaves | Ambushed by Subdweller buried in earth 2940 | -10/Subcaves | Ambushed by Subdweller buried in earth 3151 | -10/Subcaves | Destroyed by EL-C8I(R) with Subdweller Beam Cannon Last Messages --------------- 02622_ Heat Sink fries itself beyond repair. 02626_ Acquired Lgt. Treads. 02628_ Acquired 48 matter. Scrap Shield falls loose from the Twisted Machinery. 02669_ Dropped Aluminum Leg. 02670_ Acquired Scrap Shield. Sub. Power Source falls loose from the Twisted Machinery. 02683_ Dropped Sub. Power Source. 02938_ CX-F2B(R) destroyed. 02939_ 8G-AOA(R): "FREEEEDUMB!" 02940_ 8G-AOA(R) destroyed. 02941_ HQ-RH1(R): "ARGHSUB!" 02948_ Destroyed Scrap Shield. 03040_ Acquired 14 matter. 03106_ Acquired 45 matter. 03131_ Subatomizers dissect the Sub. Power Source, destroying it. 03142_ Wheel destroyed. Map ----- +----------------------------------------------------+ | " ## ##????## | | " " ## #?#### " | | ""######## ### #### "" | | ##??????##### #?### ##?# """ | | ###??????????# #### ##????# ##??## " " | | ?????????????#####??# ##??????##????# """ | | ??????????????????### ### #?????????????# | | ?????????????????## ###?###?????????????# | | ????????????????## #???????????????????# | | ??????????????### ##???????????????????## | | ?????????????## #####?????????????????# | | ????????????## # #####???????????## | | ????????????# # ##?????????## | | ????????????#### #????????## # | | ???????????????# # ## ##??????## # # | | ???????????????# #" ##### ###????# ### | | ???????????????### """"## #????# | | ?????????????????#" &" "# #?????### | | ?????????????????# & * ##??????# | | ????????????###### " ##???##?## | | ????????????#" ## ""## " " #?## ##?# | | ????????????#* ### "### """ ### ### & | | ????????????#[##<# ### ## | | ????????????#&#&! ## | ## ### | | ????????????#"&&##< R ### ### | | ????????????######## @# ##?# ### # | | ???????????????????# ## #R ##??## ## ## | | ???????????????????# ##### #????#""" | | ???????????????????###??# #???###""" | | ???????????????????????# #????## " | | ???????????????????????# #?????## | | ???????????????????????## #??????# ## # | | ????????????????????????# ####??????### ##### | | ????????????????????????# ##???????????## #??? | | ???????????????????????? ????????????## #??# | | ????????????????????????# #???????????## #??# | | ???????????????????????? ???????????## #### | | ???????????????????????? ??????????## | | ??????????????????????? #??????????# | | ??????????????????????? #???????????## | | ???????????????????????? ?????????????#### ## | | ???????????????????????? ????????????????## ## | | ??????????????????????????????????????????## ### # | | ???????????????????????????????????????????###?### | | ?????????????????????????????????????????????????? | | ?????????????????????????????????????????????????? | | ?????????????????????????????????????????????????? | | ?????????????????????????????????????????????????? | | ?????????????????????????????????????????????????? | | ?????????????????????????????????????????????????? | +----------------------------------------------------+ Best States ------------- Heat Dissipation 25 Energy Generation 15 Energy Capacity 200 Matter Stores 300 Matter Capacity 300 Sight Range 16 Terrain Scan Density 10 Core Shielding 20 Evasion (%) 41 Recoil Reduction 2 Item Schematics ----------------- Hcp. Storage Unit | -10/Materials | Hacked Robot Schematics ------------------ M-13 Machinist | -10/Materials | Hacked Fabricated ------------ Nothing Repaired ---------- Lgt. Treads | 27% | -10/Materials Alien Tech Used ----------------- None Achievements -------------- None Challenges ------------ None Game ------ Seed HugeOmegaDeflector Manual? 0 Play Time 00:23:17 Cumulative 580.3 hours Start 2025.05.15 @ 19:30:48 End 2025.05.15 @ 19:52:05 Sessions 1 Manual Loads 0 Difficulty Rogue Special Mode None Game No. 129 Rogue 129 Adventurer 0 Explorer 0 Win Type - Total 33 Types 10/3/7/1/1/1/8/1/1/0 Lore% 66 Gallery% 78 Achievement% 79 Wizard Run 0 Options --------- Layout 1 ASCII 0 Keyboard 0 Movement Numpad Keybinds 0 Fullscreen 1 Font 24/Smallcaps Map View 50x35 Zoom Use 2% Tactical HUD 1 Map Filters NONE Filters NONE Steam 1 RUN: ec39e99f-7fc6-42a5-b0bf-1d3d78d8b1da